[Event "New York Summer GM-B 2022"]
[Site "New York"]
[Date "2022.07.10"]
[Round "6.2"]
[White "Shmeliov, Denis"]
[Black "Tiglon, Bryce"]
[Result "1/2-1/2"]
[ECO "D97"]
[WhiteElo "2436"]
[BlackElo "2391"]
[Annotator "RC"]
[PlyCount "57"]
[EventDate "2022.07.08"]
[EventType "tourn"]
[EventCountry "USA"]
[SourceTitle "playchess.com"]
[Source "ChessBase"]
[SourceQuality "1"]
[TimeControl "5400+30"]

1. d4 {[%emt 0:00:03]} Nf6 {[%emt 0:07:27]} 2. c4 {[%emt 0:00:08]} g6 {[%emt 0:00:04]} 3. Nc3 {[%emt 0:00:06]} d5 {[%emt 0:00:03]} 4. Nf3 {[%emt 0:00:55]} Bg7 {[%emt 0:00:03]} 5. Qb3 {[%emt 0:00:48]} dxc4 {[%emt 0:00:33]} 6. Qxc4 {[%emt 0:00:07]} O-O {[%emt 0:00:06]} 7. e4 {[%emt 0:00:08]} a6 {[%emt 0:00:03]} 8. Be2 {[%emt 0:00:29]} b5 {[%emt 0:00:16]} 9. Qb3 {[%emt 0:00:08]} c5 {[%emt 0:00:11]} 10. dxc5 {[%emt 0:01:01]} Be6 {[%emt 0:00:17]} 11. Qc2 {[%emt 0:00:21]} Nbd7 {[%emt 0:00:09]} 12. Be3 {[%emt 0:00:56]} Rc8 {[%emt 0:00:04]} 13. Rd1 {[%emt 0:00:37]} Qa5 {[%emt 0:00:04]} 14. a3 {[%emt 0:08:44]} b4 {[%emt 0:00:03]} 15. axb4 {[%emt 0:02:57]} Qxb4 {[%emt 0:00:03]} 16. Nd4 {[%emt 0:02:46]} Nxc5 {[%emt 0:03:31]} 17. O-O {[%emt 0:11:46]} Ng4 {[%emt 0:08:35]} 18. Bxg4 {[%emt 0:01:26]} Bxg4 {[%emt 0:00:11]} 19. f3 {[%emt 0:00:24]} Be6 {[%emt 0:00:28]} 20. Nd5 {[%emt 0:03:48]} Bxd5 {[%emt 0:02:31]} 21. exd5 {[%emt 0:00:08]} Bxd4 {[%emt 0:00:20]} 22. Rxd4 {[%emt 0:00:55]} Qb7 {[%emt 0:00:38]} 23. Qe2 {[%emt 0:02:53]} Rfd8 {[%emt 0:09:28]} 24. Rfd1 {[%emt 0:10:01]} Nb3 {[%emt 0:05:33]} 25. R4d3 {[%emt 0:14:04]} Qb5 {[%emt 0:15:19]} 26. Bh6 {[%emt 0:06:45]} Nd4 {[%emt 0:00:53]} 27. Qxe7 {[%emt 0:09:25]} Nf5 {[%emt 0:01:08]} 28. Qg5 {[%emt 0:00:06]} Rd6 {[%emt 0:11:58]} 29. Qd2 {[%emt 0:08:08]} 1/2-1/2

[Event "New York Summer GM-B 2022"]
[Site "New York"]
[Date "2022.07.10"]
[Round "6.3"]
[White "Zeltsan, Joseph"]
[Black "Paragua, Mark"]
[Result "1/2-1/2"]
[ECO "C00"]
[WhiteElo "2337"]
[BlackElo "2461"]
[Annotator "RC"]
[PlyCount "44"]
[EventDate "2022.07.08"]
[EventType "tourn"]
[EventCountry "USA"]
[SourceTitle "playchess.com"]
[Source "ChessBase"]
[SourceQuality "1"]
[TimeControl "5400+30"]

1. e4 {[%emt 0:00:02]} c5 {[%emt 0:00:07]} 2. Nf3 {[%emt 0:00:15]} e6 {[%emt 0:00:09]} 3. g3 {[%emt 0:01:48]} Nc6 {[%emt 0:00:31]} 4. Bg2 {[%emt 0:00:08]} Nf6 {[%emt 0:01:08]} 5. d3 {[%emt 0:00:05]} d5 {[%emt 0:00:39]} 6. O-O {[%emt 0:00:22]} Be7 {[%emt 0:02:49]} 7. Qe2 {[%emt 0:00:18]} O-O {[%emt 0:07:06]} 8. e5 {[%emt 0:00:37]} Nd7 {[%emt 0:01:08]} 9. c4 {[%emt 0:00:02]} b5 {[%emt 0:00:08]} 10. cxb5 {[%emt 0:17:40]} Nd4 {[%emt 0:00:22]} 11. Nxd4 {[%emt 0:02:27]} cxd4 {[%emt 0:00:09]} 12. Nd2 {[%emt 0:01:28]} Qb6 {[%emt 0:38:11]} 13. a4 {[%emt 0:03:09]} a6 {[%emt 0:04:25]} 14. Nb3 {[%emt 0:13:15]} axb5 {[%emt 0:01:19]} 15. a5 {[%emt 0:02:05]} Qa7 {[%emt 0:00:52]} 16. Re1 {[%emt 0:03:38]} Kh8 {[%emt 0:05:08]} 17. Bd2 {[%emt 0:08:49]} b4 {[%emt 0:02:08]} 18. Qg4 {[%emt 0:05:28]} Nc5 {[%emt 0:11:20]} 19. Nc1 {[%emt 0:07:49]} Nd7 {[%emt 0:22:21]} 20. Nb3 {[%emt 0:00:10]} Nc5 {[%emt 0:00:00]} 21. Nc1 {[%emt 0:01:40]} Na6 {[%emt 0:00:00]} 22. Nb3 {[%emt 0:04:58]} Nc5 {[%emt 0:00:00]} 1/2-1/2

[Event "New York Summer GM-B 2022"]
[Site "New York"]
[Date "2022.07.10"]
[Round "6.4"]
[White "Maiti, Milind"]
[Black "Jacobson, Aaron"]
[Result "0-1"]
[ECO "E32"]
[WhiteElo "2316"]
[BlackElo "2305"]
[Annotator "RC"]
[PlyCount "78"]
[EventDate "2022.07.08"]
[EventType "tourn"]
[EventCountry "USA"]
[SourceTitle "playchess.com"]
[Source "ChessBase"]
[SourceQuality "1"]
[TimeControl "5400+30"]

1. d4 {[%emt 0:00:30]} Nf6 {[%emt 0:14:27]} 2. c4 {[%emt 0:00:00]} e6 {[%emt 0:00:03]} 3. Nc3 {[%emt 0:00:00]} Bb4 {[%emt 0:00:07]} 4. Qc2 {[%emt 0:00:00]} b6 {[%emt 0:00:10]} 5. e4 {[%emt 0:03:20]} c5 {[%emt 0:00:08]} 6. d5 {[%emt 0:02:25]} Qe7 {[%emt 0:00:08]} 7. Be2 {[%emt 0:15:21]} d6 {[%emt 0:01:21]} 8. Bd2 {[%emt 0:10:25]} O-O {[%emt 0:04:36]} 9. O-O-O {[%emt 0:05:35]} exd5 {[%emt 0:08:23]} 10. exd5 {[%emt 0:07:34]} Bxc3 {[%emt 0:02:59]} 11. Bxc3 {[%emt 0:16:26]} Ne4 {[%emt 0:02:51]} 12. Bd3 {[%emt 0:08:48]} Nxc3 {[%emt 0:07:59]} 13. Qxc3 {[%emt 0:00:40]} Qg5+ {[%emt 0:12:16]} 14. Kb1 {[%emt 0:01:03]} Qxg2 {[%emt 0:01:46]} 15. Ne2 {[%emt 0:03:33]} Qxf2 {[%emt 0:09:15]} 16. Rdf1 {[%emt 0:08:50]} Qh4 {[%emt 0:00:47]} 17. Rhg1 {[%emt 0:03:32]} g6 {[%emt 0:02:37]} 18. Rf4 {[%emt 0:08:06]} Qxh2 {[%emt 0:12:23]} 19. Qf6 {[%emt 0:00:40]} Nd7 {[%emt 0:00:29]} 20. Qxd6 {[%emt 0:00:20]} Qh6 {[%emt 0:02:29]} 21. Ng3 {[%emt 0:01:04]} Qg5 {[%emt 0:00:34]} 22. Re4 {[%emt 0:01:57]} Rd8 {[%emt 0:08:14]} 23. Ne2 {[%emt 0:00:51]} Qf6 {[%emt 0:00:17]} 24. Qg3 {[%emt 0:00:47]} Nf8 {[%emt 0:00:31]} 25. Rf4 {[%emt 0:00:22]} Qe5 {[%emt 0:01:18]} 26. Qf3 {[%emt 0:00:12]} Qg7 {[%emt 0:02:28]} 27. Ng3 {[%emt 0:00:21]} Nd7 {[%emt 0:00:33]} 28. Nh5 {[%emt 0:00:53]} Qf8 {[%emt 0:00:56]} 29. Bxg6 {[%emt 0:00:44]} hxg6 {[%emt 0:00:36]} 30. Rxg6+ {[%emt 0:00:17]} fxg6 {[%emt 0:00:44]} 31. Rxf8+ {[%emt 0:00:12]} Rxf8 {[%emt 0:00:12]} 32. Qe4 {[%emt 0:00:58]} Ne5 {[%emt 0:01:38]} 33. Qxe5 {[%emt 0:00:14]} Bf5+ {[%emt 0:00:14]} 34. Kc1 {[%emt 0:00:04]} gxh5 {[%emt 0:00:05]} 35. d6 {[%emt 0:00:20]} Rae8 {[%emt 0:00:54]} 36. Qd5+ {[%emt 0:00:04]} Kg7 {[%emt 0:00:13]} 37. Kd2 {[%emt 0:00:19]} Bg6 {[%emt 0:00:31]} 38. d7 {[%emt 0:00:56]} Rf2+ {[%emt 0:00:22]} 39. Kd1 {[%emt 0:00:09]} Bc2+ {[%emt 0:00:03]} 0-1

[Event "New York Summer GM-B 2022"]
[Site "New York"]
[Date "2022.07.10"]
[Round "6.5"]
[White "Lenderman, Aleksandr"]
[Black "Griffith, Kyron"]
[Result "1/2-1/2"]
[ECO "B13"]
[WhiteElo "2572"]
[BlackElo "2357"]
[Annotator "TA"]
[PlyCount "74"]
[EventDate "2022.07.08"]
[EventType "tourn"]
[EventCountry "USA"]
[SourceTitle "playchess.com"]
[Source "ChessBase"]
[SourceQuality "1"]
[TimeControl "5400+30"]

{[%evp 11,74,19,13,6,9,0,6,0,8,0,0,0,0,0,0,0,22,8,18,16,14,0,0,0,14,0,0,0,0,0,0,0,0,-7,0,0,0,0,0,0,0,0,0,0,77,0,0,0,158,149,135,0,0,0,0,0,0,0,0,0,0,0,0,0,0]} 1. e4 {[%emt 0:00:03]} c6 {[%emt 0:01:58]} 2. d4 {[%emt 0:00:05]} d5 {[%emt 0:00:06]} 3. exd5 {[%emt 0:00:11]} cxd5 {[%emt 0:00:02]} 4. Bd3 {[%emt 0:00:12]} Nf6 {[%emt 0:00:05]} 5. h3 {[%emt 0:00:12]} Nc6 {[%emt 0:00:09]} 6. c3 {[%emt 0:00:11]} g6 {[%emt 0:00:15]} (6... e5 {seems wilder.} 7. dxe5 Nxe5 8. Qe2 Ne4) 7. Nd2 {[%emt 0:00:28] B13: Caro-Kann: Exchange Variation and Panov-Botvinnik Attack.} Bf5 {[%emt 0:00:33] [#]} 8. Bxf5 $146 {[%emt 0:00:22]} ({Predecessor:} 8. Nf1 Qc7 9. Ne3 Bxd3 10. Qxd3 e6 11. Ne2 Bg7 12. Ng4 Nh5 13. Ng3 Nxg3 14. fxg3 h5 {0-1 (28) Kovacevic,D (2233)-Lorparizangeneh,S (2493) Stari Banovci 2018}) 8... gxf5 {[%emt 0:00:02]} 9. Ne2 {[%emt 0:00:31]} e6 {[%emt 0:02:20]} 10. Nf3 {[%emt 0:00:32]} Ne4 {[%emt 0:02:02]} 11. O-O {[%emt 0:01:49]} Bd6 {[%emt 0:02:01]} 12. Bf4 {[%emt 0:00:22]} Rg8 {[%emt 0:17:51]} 13. Qc1 {[%emt 0:02:30]} Qf6 {[%emt 0:01:38]} 14. Ne1 {[%emt 0:10:50]} O-O-O {[%emt 0:04:12]} 15. f3 {[%emt 0:02:46]} Bxf4 {[%emt 0:06:51]} 16. Qxf4 {[%emt 0:01:21]} Nd6 {[%emt 0:00:20]} 17. Nd3 {[%emt 0:02:03]} Ne7 {[%emt 0:01:46]} 18. Qh2 {[%emt 0:00:15]} Kb8 {[%emt 0:06:23]} 19. Nef4 {[%emt 0:00:53]} Ka8 {[%emt 0:00:58]} 20. a4 {[%emt 0:01:46]} Qh4 {[%emt 0:03:21]} 21. a5 {[%emt 0:02:36]} a6 {[%emt 0:00:29]} 22. Kh1 {[%emt 0:02:11]} Rg3 {[%emt 0:06:27]} 23. Ne2 {[%emt 0:04:51]} Rdg8 {[%emt 0:00:29][%cal Og3g2]} 24. Nxg3 {[%emt 0:09:40]} Rxg3 {[%emt 0:00:02]} 25. Nc1 {[%emt 0:03:51]} f4 {[%emt 0:00:48]} 26. Ne2 {[%emt 0:00:06]} Nef5 {[%emt 0:00:32]} 27. b3 {[%emt 0:08:20]} ({White should try} 27. Nxg3 $11 Nxg3+ 28. Kg1) 27... f6 $1 $16 {[%emt 0:12:16][%cal Od6f7] [#]} 28. Qg1 {[%emt 0:04:34]} ({Reject} 28. Nxg3 Nxg3+ 29. Kg1 Ne2+ 30. Kh1 Ng3+ 31. Kg1 Ne2+ 32. Kh1 Ng3+ $11) ({White should play} 28. Rad1 $1 $16) 28... Rg6 $11 {[%emt 0:04:21]} 29. Qf2 {[%emt 0:01:15]} Ng3+ $2 {[%emt 0:02:09]} (29... Qh6 $11) 30. Nxg3 $16 {[%emt 0:00:46]} Rxg3 {[%emt 0:00:02]} 31. Kh2 {[%emt 0:03:19]} (31. Qd2 $16) 31... Nf7 $1 $11 {[%emt 0:00:48] [#] White must now prevent ...Ng5. The position is equal.} 32. Qa2 {[%emt 0:04:13]} Ng5 {[%emt 0:06:36][%cal Rg5h3] ( -> ...Nxh3!)} 33. Qa3 $1 {[%emt 0:00:15]} Rxh3+ {[%emt 0:07:10]} 34. gxh3 {[%emt 0:00:09]} Qxh3+ {[%emt 0:00:09]} 35. Kg1 {[%emt 0:00:03] Hoping for Ra2.} Qg3+ {[%emt 0:00:04]} 36. Kh1 {[%emt 0:00:09] Qf8+ is the strong threat.} Qh4+ {[%emt 0:00:02]} 37. Kg1 {[%emt 0:01:17]} Qg3+ {[%emt 0:00:25] Weighted Error Value: White=0.10 (very precise) /Black=0.11 (very precise)} 1/2-1/2

[Event "New York Summer GM-B 2022"]
[Site "New York"]
[Date "2022.07.11"]
[Round "7.1"]
[White "Griffith, Kyron"]
[Black "Wang, Qibiao"]
[Result "1/2-1/2"]
[ECO "C77"]
[WhiteElo "2357"]
[BlackElo "2365"]
[Annotator "RC"]
[PlyCount "33"]
[EventDate "2022.07.08"]
[EventType "tourn"]
[EventCountry "USA"]
[SourceTitle "playchess.com"]
[Source "ChessBase"]
[SourceQuality "1"]
[TimeControl "5400+30"]

1. e4 {[%emt 0:00:04]} e5 {[%emt 0:00:04]} 2. Nf3 {[%emt 0:00:04]} Nc6 {[%emt 0:00:03]} 3. Bb5 {[%emt 0:00:05]} a6 {[%emt 0:00:03]} 4. Ba4 {[%emt 0:00:06]} Nf6 {[%emt 0:00:04]} 5. O-O {[%emt 0:00:07]} Be7 {[%emt 0:00:03]} 6. d3 {[%emt 0:00:10]} b5 {[%emt 0:00:22]} 7. Bb3 {[%emt 0:00:02]} d6 {[%emt 0:00:06]} 8. a3 {[%emt 0:00:06]} O-O {[%emt 0:00:12]} 9. Nc3 {[%emt 0:00:03]} Nb8 {[%emt 0:00:28]} 10. a4 {[%emt 0:05:05]} b4 {[%emt 0:00:38]} 11. Ne2 {[%emt 0:01:30]} c5 {[%emt 0:02:00]} 12. c3 {[%emt 0:01:14]} Nc6 {[%emt 0:00:48]} 13. Ng3 {[%emt 0:01:10]} Rb8 {[%emt 0:02:26]} 14. d4 {[%emt 0:26:05]} bxc3 {[%emt 0:01:35]} 15. bxc3 {[%emt 0:00:26]} cxd4 {[%emt 0:00:44]} 16. cxd4 {[%emt 0:01:17]} exd4 {[%emt 0:16:00]} 17. Ba3 {[%emt 0:05:25]} 1/2-1/2

[Event "New York Summer GM-B 2022"]
[Site "New York"]
[Date "2022.07.11"]
[Round "7.2"]
[White "Jacobson, Aaron"]
[Black "Lenderman, Aleksandr"]
[Result "1/2-1/2"]
[ECO "B00"]
[WhiteElo "2305"]
[BlackElo "2572"]
[Annotator "TA"]
[PlyCount "72"]
[EventDate "2022.07.08"]
[EventType "tourn"]
[EventCountry "USA"]
[SourceTitle "playchess.com"]
[Source "ChessBase"]
[SourceQuality "1"]
[TimeControl "5400+30"]

{[%evp 9,72,70,84,47,82,37,56,22,52,56,97,90,96,96,90,92,86,93,114,90,66,0,37,0,27,0,0,0,0,-104,-139,-100,-139,-131,0,0,18,8,175,176,156,140,100,0,63,29,49,48,60,0,0,0,0,-65,0,0,0,0,0,0,0,0,0,0,0]} 1. d4 {[%emt 0:01:51]} b6 {[%emt 0:00:09]} 2. e4 {[%emt 0:00:07]} Bb7 {[%emt 0:00:07]} 3. Nc3 {[%emt 0:02:26]} g6 {[%emt 0:00:17]} 4. h4 {[%emt 0:01:40]} h6 {[%emt 0:01:54]} 5. Be3 {[%emt 0:04:53]} Bg7 {[%emt 0:01:23] [#]} 6. g4 $146 {[%emt 0:07:14] B00: Queen's Fianchetto Defence, Nimzowitsch Defence.} ({Predecessor:} 6. f4 h5 7. e5 Nh6 8. Nf3 d6 9. Bd3 Ng4 10. Qe2 e6 11. O-O-O a6 12. d5 exd5 13. exd6 {0-1 (23) Potapova,M (2270)-Erigaisi,A (2559) Chess.com INT 2020}) 6... d6 {[%emt 0:03:43]} 7. Bg2 {[%emt 0:03:51]} c5 {[%emt 0:04:21]} 8. d5 {[%emt 0:10:42] White is slightly better.} b5 {[%emt 0:04:43]} 9. Nxb5 {[%emt 0:14:54]} Bxb2 {[%emt 0:14:04]} 10. Rb1 {[%emt 0:00:54]} Qa5+ {[%emt 0:01:48]} 11. Bd2 {[%emt 0:01:22]} Qxb5 {[%emt 0:00:15]} 12. Rh3 $1 {[%emt 0:28:43] Threatens to win with Rb3.} Ba6 {[%emt 0:06:18]} 13. Rb3 {[%emt 0:00:24]} Qa4 {[%emt 0:00:07][%cal Ob8d7]} 14. R1xb2 {[%emt 0:03:29]} ({Much weaker is} 14. R3xb2 $6 Nd7 $14) 14... Nd7 {[%emt 0:00:38][%cal Bb8d7,Bd7e5,Be5c4][%mdl 32]} 15. Bc3 {[%emt 0:01:26]} Ngf6 {[%emt 0:01:37]} 16. Qf3 {[%emt 0:08:19] g5 is the strong threat.} O-O {[%emt 0:03:50]} 17. g5 {[%emt 0:01:05]} hxg5 {[%emt 0:01:05]} 18. hxg5 {[%emt 0:00:02]} Nh5 {[%emt 0:00:26]} 19. Bd2 {[%emt 0:03:10]} (19. Ne2 $11) 19... Ne5 $17 {[%emt 0:01:21]} 20. Qc3 {[%emt 0:00:08]} Nc4 {[%emt 0:01:32] Against Ra3} 21. Rb1 {[%emt 0:04:20]} Qd7 {[%emt 0:05:34]} (21... Qxa2 $2 22. Ra1 Nxd2 23. Kxd2 Qxb3 24. cxb3 $18) (21... Rae8 $17 {Hoping for ...e6.} 22. Bc1 e6 23. dxe6 fxe6) 22. Qh3 $11 {[%emt 0:00:00]} e6 {[%emt 0:01:12]} 23. Bf3 $1 {[%emt 0:00:00]} Ng7 {[%emt 0:04:54] [#]} (23... Nxd2 $11 24. Kxd2 Qa4 25. Bxh5 Qd4+ 26. Kc1 gxh5) 24. Bc3 $1 $18 {[%emt 0:00:00] White threatens Bf6 and mate.} Ne5 {[%emt 0:00:08]} 25. Bxe5 {[%emt 0:00:21]} dxe5 {[%emt 0:00:02] [#]} 26. Be2 {[%emt 0:00:59] Prevents Bc4.} (26. Ne2 $1 $16) 26... Qd6 {[%emt 0:01:38]} (26... Bxe2 $11 27. Nxe2 c4) 27. Qh4 $14 {[%emt 0:00:44] Strongly threatening Rh3. White is more active.} Bxe2 {[%emt 0:03:31]} 28. Nxe2 {[%emt 0:00:01]} Rab8 {[%emt 0:00:34][%cal Ba8b8,Bb8b4,Bb4b3][%mdl 32]} 29. Nc3 $40 {[%emt 0:00:47][%mdl 128] White mounts an attack.} (29. dxe6 $1 $14 Rxb3 30. exf7+ Rxf7 31. Rxb3 (31. Rd1 Qxd1+ 32. Kxd1 Rb1+ 33. Kd2 Rf1 $11)) 29... Rb4 {[%emt 0:00:17]} 30. dxe6 {[%emt 0:01:04]} fxe6 {[%emt 0:00:14]} 31. Ne2 {[%emt 0:00:22]} (31. Rd1 $11 Qc7 32. Qh3) 31... Nf5 {[%emt 0:04:27]} (31... Rd8 $15 32. Kf1 Qd2) 32. Qh1 $11 {[%emt 0:00:33] The position is equal.} Nd4 {[%emt 0:01:06]} 33. Qh6 {[%emt 0:00:34]} Nf3+ {[%emt 0:04:20]} 34. Kf1 {[%emt 0:00:04] Really sharp!} Rxb3 $1 {[%emt 0:00:19]} (34... Nd2+ $2 35. Kg2 Qd7 36. Rxb4 (36. Qxg6+ Qg7 $18) 36... cxb4 37. Qxg6+ Qg7 38. Qxe6+ Qf7 39. Qxf7+ Kxf7 40. Rxb4 $18) 35. Qxg6+ {[%emt 0:00:05]} Kh8 {[%emt 0:00:06]} 36. Qh6+ {[%emt 0:00:10]} Kg8 {[%emt 0:00:03] Weighted Error Value: White=0.20 (precise) /Black=0.24 (precise)} 1/2-1/2

[Event "New York Summer GM-B 2022"]
[Site "New York"]
[Date "2022.07.11"]
[Round "7.3"]
[White "Paragua, Mark"]
[Black "Maiti, Milind"]
[Result "1-0"]
[ECO "E04"]
[WhiteElo "2461"]
[BlackElo "2316"]
[Annotator "RC"]
[PlyCount "57"]
[EventDate "2022.07.08"]
[EventType "tourn"]
[EventCountry "USA"]
[SourceTitle "playchess.com"]
[Source "ChessBase"]
[SourceQuality "1"]
[TimeControl "5400+30"]

1. d4 {[%emt 0:02:48]} Nf6 {[%emt 0:00:06]} 2. c4 {[%emt 0:00:09]} e6 {[%emt 0:00:07]} 3. g3 {[%emt 0:01:15]} d5 {[%emt 0:00:27]} 4. Bg2 {[%emt 0:00:19]} dxc4 {[%emt 0:03:45]} 5. Nf3 {[%emt 0:00:12]} Bd7 {[%emt 0:00:19]} 6. O-O {[%emt 0:02:30]} Bc6 {[%emt 0:04:58]} 7. Bg5 {[%emt 0:08:23]} Be7 {[%emt 0:06:44]} 8. Qc2 {[%emt 0:10:45]} b5 {[%emt 0:07:33]} 9. Nbd2 {[%emt 0:09:03]} O-O {[%emt 0:14:33]} 10. e4 {[%emt 0:09:43]} a6 {[%emt 0:15:47]} 11. Rfe1 {[%emt 0:09:36]} Bb7 {[%emt 0:10:45]} 12. b3 {[%emt 0:02:06]} cxb3 {[%emt 0:05:06]} 13. Nxb3 {[%emt 0:00:23]} Nc6 {[%emt 0:02:31]} 14. Rad1 {[%emt 0:06:54]} Qc8 {[%emt 0:12:44]} 15. Nc5 {[%emt 0:10:09]} Bxc5 {[%emt 0:02:19]} 16. Qxc5 {[%emt 0:00:05]} Nd7 {[%emt 0:00:38]} 17. Qc3 {[%emt 0:00:07]} Nb6 {[%emt 0:01:32]} 18. d5 {[%emt 0:02:38]} exd5 {[%emt 0:05:07]} 19. exd5 {[%emt 0:00:12]} Nb8 {[%emt 0:00:30]} 20. Ne5 {[%emt 0:08:02]} f6 {[%emt 0:04:11]} 21. Nc6 {[%emt 0:00:05]} Bxc6 {[%emt 0:00:35]} 22. dxc6 {[%emt 0:00:02]} fxg5 {[%emt 0:00:28]} 23. Re7 {[%emt 0:00:15]} Rf7 {[%emt 0:00:24]} 24. Qb3 {[%emt 0:01:17]} Nc4 {[%emt 0:00:38]} 25. Bd5 {[%emt 0:00:31]} Nd6 {[%emt 0:00:35]} 26. Bxf7+ {[%emt 0:03:44]} Kf8 {[%emt 0:00:06]} 27. Rxd6 {[%emt 0:00:13]} Kxe7 {[%emt 0:00:19]} 28. Re6+ {[%emt 0:00:03]} Kxf7 {[%emt 0:00:33]} 29. Re8+ {[%emt 0:00:04]} 1-0

[Event "New York Summer GM-B 2022"]
[Site "New York"]
[Date "2022.07.11"]
[Round "7.4"]
[White "Tiglon, Bryce"]
[Black "Zeltsan, Joseph"]
[Result "1/2-1/2"]
[ECO "B51"]
[WhiteElo "2391"]
[BlackElo "2337"]
[Annotator "RC"]
[PlyCount "81"]
[EventDate "2022.07.08"]
[EventType "tourn"]
[EventCountry "USA"]
[SourceTitle "playchess.com"]
[Source "ChessBase"]
[SourceQuality "1"]
[TimeControl "5400+30"]

1. e4 {[%emt 0:00:02]} c5 {[%emt 0:00:25]} 2. Nf3 {[%emt 0:00:27]} d6 {[%emt 0:00:03]} 3. Bb5+ {[%emt 0:00:19]} Nd7 {[%emt 0:00:09]} 4. d4 {[%emt 0:00:10]} cxd4 {[%emt 0:00:03]} 5. Qxd4 {[%emt 0:00:04]} a6 {[%emt 0:00:05]} 6. Bxd7+ {[%emt 0:00:06]} Bxd7 {[%emt 0:00:04]} 7. c4 {[%emt 0:00:08]} b5 {[%emt 0:00:06]} 8. Nc3 {[%emt 0:00:11]} e5 {[%emt 0:00:25]} 9. Qd3 {[%emt 0:00:03]} bxc4 {[%emt 0:00:06]} 10. Qxc4 {[%emt 0:00:05]} Be6 {[%emt 0:00:05]} 11. Qc6+ {[%emt 0:00:24]} Bd7 {[%emt 0:00:07]} 12. Qc4 {[%emt 0:00:04]} Be6 {[%emt 0:00:03]} 13. Qd3 {[%emt 0:00:07]} h6 {[%emt 0:00:31]} 14. O-O {[%emt 0:00:13]} Nf6 {[%emt 0:00:05]} 15. Rd1 {[%emt 0:00:12]} Be7 {[%emt 0:00:20]} 16. Ne1 {[%emt 0:00:12]} O-O {[%emt 0:00:11]} 17. Nc2 {[%emt 0:00:03]} Qd7 {[%emt 0:00:09]} 18. Ne3 {[%emt 0:01:13]} Rfc8 {[%emt 0:01:55]} 19. h3 {[%emt 0:20:27]} Qb7 {[%emt 0:02:41]} 20. b3 {[%emt 0:04:35]} a5 {[%emt 0:03:03]} 21. Ba3 {[%emt 0:20:46]} Ra6 {[%emt 0:05:01]} 22. Rac1 {[%emt 0:06:04]} Kh8 {[%emt 0:21:21]} 23. Ncd5 {[%emt 0:08:45]} Nxd5 {[%emt 0:08:48]} 24. Rxc8+ {[%emt 0:01:32]} Bxc8 {[%emt 0:01:28]} 25. Nxd5 {[%emt 0:05:48]} Bf8 {[%emt 0:06:47]} 26. Rc1 {[%emt 0:01:52]} Rc6 {[%emt 0:02:35]} 27. Qd2 {[%emt 0:13:55]} Rxc1+ {[%emt 0:03:43]} 28. Bxc1 {[%emt 0:00:01]} Qb5 {[%emt 0:05:03]} 29. Bb2 {[%emt 0:02:44]} Bb7 {[%emt 0:06:23]} 30. f3 {[%emt 0:06:47]} a4 {[%emt 0:04:50]} 31. bxa4 {[%emt 0:00:16]} Qxa4 {[%emt 0:00:34]} 32. Bc3 {[%emt 0:00:23]} Qc4 {[%emt 0:01:44]} 33. Ne3 {[%emt 0:00:13]} Qc6 {[%emt 0:04:41]} 34. Kh1 {[%emt 0:02:45]} Kh7 {[%emt 0:00:44]} 35. Nd5 {[%emt 0:03:15]} Qc4 {[%emt 0:01:41]} 36. Ne3 {[%emt 0:00:02]} Qc6 {[%emt 0:01:13]} 37. Bb4 {[%emt 0:00:33]} Be7 {[%emt 0:01:05]} 38. Nf5 {[%emt 0:01:15]} Bg5 {[%emt 0:00:28]} 39. Qe1 {[%emt 0:02:25]} d5 {[%emt 0:00:48]} 40. exd5 {[%emt 0:00:20]} Qxd5 {[%emt 0:02:59]} 41. Nd6 {[%emt 0:00:17]} 1/2-1/2